fUST/lending_fUST_20250916
["ID","MTS","AMOUNT","RATE_DAILY","PERIOD"]
[385700828,1757979038074,-500.0,0.00023265,2]
[385700830,1757979038083,-500.0,0.00023265,2]
[385700832,1757979038092,-500.0,0.00023265,2]
[385700834,1757979038102,-500.0,0.00023265,2]
[385700836,1757979038111,-500.0,0.00023265,2]
[385700838,1757979038120,-500.0,0.00023265,2]
[385700840,1757979038131,-500.0,0.00023265,2]
[385700841,1757979038140,-500.0,0.00023265,2]
[385700843,1757979038151,-500.0,0.00023265,2]
[385700845,1757979038160,-500.0,0.00023265,2]
[385700847,1757979038169,-221.30562327,0.00023265,2]
[385700849,1757979038178,-500.0,0.00023265,2]
[385700852,1757979038188,-500.0,0.00023265,2]
[385700853,1757979038197,-500.0,0.00023265,2]
[385700856,1757979038207,-500.0,0.00023265,2]
[385700858,1757979038216,-500.0,0.00023265,2]
[385700859,1757979038225,-500.0,0.00023265,2]
[385700861,1757979038234,-500.0,0.00023265,2]
[385700864,1757979038243,-500.0,0.00023265,2]
[385700866,1757979038253,-500.0,0.00023265,2]
[385700868,1757979038262,-500.0,0.00023265,2]
[385700870,1757979038271,-500.0,0.00023265,2]
[385700872,1757979038280,-500.0,0.00023265,2]
[385700874,1757979038290,-500.0,0.00023265,2]
[385700875,1757979038299,-500.0,0.00023265,2]
[385700878,1757979038308,-244560.46812764,0.00023271,2]
[385700879,1757979038317,-500.0,0.00023273,2]
[385700881,1757979038326,-500.0,0.00023273,2]
[385700884,1757979038336,-313.3833243,0.00023273,2]
[385700885,1757979038346,-500.0,0.00023273,2]
[385700887,1757979038355,-500.0,0.00023273,2]
[385700889,1757979038364,-500.0,0.00023273,2]
[385700891,1757979038373,-500.0,0.00023273,2]
[385700893,1757979038382,-500.76948217,0.00023273,2]
[385700895,1757979038392,-500.0,0.00023273,2]
[385700897,1757979038402,-500.0,0.00023273,2]
[385700899,1757979038411,-150.0,0.00023273,2]
[385700902,1757979038421,-364.04709073,0.00023273,2]
[385700904,1757979038431,-500.0,0.00023273,2]
[385700906,1757979038442,-500.0,0.00023273,2]
[385700907,1757979038452,-500.0,0.00023273,2]
[385700910,1757979038462,-500.0,0.00023273,2]
[385700911,1757979038471,-500.0,0.00023273,2]
[385700914,1757979038481,-160.0,0.00023287,3]
[385700915,1757979038490,-1298.23,0.00023287,2]
[385700917,1757979038500,-480.0,0.00023287,3]
[385700920,1757979038512,-2335.33,0.000233,7]
[385700921,1757979038522,-22662.95,0.000233,7]
[385700924,1757979038532,-534.61055861,0.00023314,2]
[385700925,1757979038542,-847.45018724,0.00023346,3]
[385700927,1757979038551,-480.0,0.00023371,3]
[385700929,1757979038562,-160.0,0.00023379,2]
[385700931,1757979038571,-300.0,0.0002341,2]
[385700933,1757979038580,-933.96399753,0.0002348,2]
[385700935,1757979038589,-480.0,0.00023491,3]
[385700937,1757979038598,-1168.02,0.00023491,3]
[385700939,1757979038606,-480.0,0.00023491,3]
[385700942,1757979038616,-699.14,0.00023491,3]
[385700943,1757979038626,-450.0,0.00023547,2]
[385700945,1757979038635,-1000.0,0.00023549,2]
[385700947,1757979038644,-1000.0,0.00023549,2]
[385700949,1757979038654,-1000.0,0.00023549,2]
[385700951,1757979038664,-1000.0,0.00023549,2]
[385700954,1757979038673,-181.08010149,0.00023549,2]
[385700955,1757979038683,-18761.83172441,0.00023549,2]
[385700957,1757979038694,-151.0,0.00023549,2]
[385700959,1757979038704,-1000.0,0.00023549,2]
[385700961,1757979038715,-151.0,0.00023549,2]
[385700963,1757979038727,-151.0,0.00023549,2]
[385700966,1757979038736,-500.0,0.00023549,2]
[385700968,1757979038745,-1000.0,0.00023549,2]
[385700970,1757979038756,-151.0,0.00023549,2]
[385700971,1757979038765,-500.0,0.00023549,2]
[385700973,1757979038774,-1000.0,0.00023549,2]
[385700976,1757979038783,-151.0,0.00023549,2]
[385700978,1757979038792,-500.0,0.00023549,2]
[385700979,1757979038802,-151.0,0.00023549,2]
[385700981,1757979038811,-1000.0,0.00023549,2]
[385700984,1757979038820,-151.0,0.00023549,2]
[385700986,1757979038830,-500.0,0.00023549,2]
[385700988,1757979038841,-151.0,0.00023549,2]
[385700990,1757979038850,-1000.0,0.00023549,2]
[385700992,1757979038859,-151.0,0.00023549,2]
[385700994,1757979038868,-151.0,0.00023549,2]
[385700995,1757979038877,-500.0,0.00023549,2]
[385700997,1757979038886,-300.11116599,0.00023549,2]
[385701000,1757979038895,-1000.0,0.00023549,2]
[385701001,1757979038905,-151.0,0.00023549,2]
[385701003,1757979038914,-500.0,0.00023549,2]
[385701005,1757979038923,-1000.0,0.00023549,2]
[385701007,1757979038932,-500.0,0.00023549,2]
[385701009,1757979038942,-151.0,0.00023549,2]
[385701011,1757979038951,-1000.0,0.00023549,2]
[385701013,1757979038960,-500.0,0.00023549,2]
[385701015,1757979038969,-151.0,0.00023549,2]
[385701018,1757979038979,-1000.0,0.00023549,2]
[385701020,1757979038989,-500.0,0.00023549,2]
[385701022,1757979039002,-151.0,0.00023549,2]
[385701024,1757979039010,-1145.9850186,0.00023549,2]
[385701026,1757979039019,-500.0,0.00023549,2]
[385701028,1757979039028,-151.0,0.00023549,2]
[385701029,1757979039038,-500.0,0.00023549,2]
[385701032,1757979039047,-500.0,0.00023549,2]
[385701034,1757979039057,-500.0,0.00023549,2]
[385701035,1757979039067,-500.0,0.00023549,2]
[385701038,1757979039077,-151.0,0.00023549,2]
[385701040,1757979039089,-500.0,0.00023549,2]
[385701042,1757979039099,-151.0,0.00023549,2]
[385701044,1757979039108,-500.0,0.00023549,2]
[385701046,1757979039118,-151.0,0.00023549,2]
[385701048,1757979039127,-500.0,0.00023549,2]
[385701049,1757979039136,-174.65843349,0.00023549,2]
[385701051,1757979039145,-500.0,0.00023549,2]
[385701053,1757979039154,-500.0,0.00023549,2]
[385701056,1757979039164,-500.0,0.00023549,2]
[385701057,1757979039175,-500.0,0.00023549,2]
[385701060,1757979039184,-500.0,0.00023549,2]
[385701061,1757979039194,-611.06738429,0.00023561,3]
[385701063,1757979039203,-5000.0,0.00023568,2]
[385701066,1757979039213,-555.7741542,0.00023573,2]
[385701068,1757979039222,-500.0,0.00023573,2]
[385701070,1757979039231,-500.0,0.00023573,2]
[385701072,1757979039240,-500.0,0.00023573,2]
[385701073,1757979039249,-218.31269636,0.00023684,2]
[385701075,1757979039258,-300.89952072,0.00023687,2]
[385701077,1757979039268,-300.0,0.00023734,20]
[385701079,1757979039277,-300.0,0.00023734,20]
[385701081,1757979039286,-480.0,0.00023765,3]
[385701083,1757979039296,-1168.02,0.00023765,3]
[385701085,1757979039305,-480.0,0.00023765,3]
[385701087,1757979039314,-699.14,0.00023765,3]
[385701089,1757979039324,-933.96399753,0.00023787,2]
[385701091,1757979039332,-500.85652594,0.00023821,2]
[385701093,1757979039342,-500.0,0.00023821,2]
[385701095,1757979039351,-1000.0,0.00023821,2]
[385701097,1757979039360,-1000.0,0.00023821,2]
[385701099,1757979039369,-1000.0,0.00023821,2]
[385701101,1757979039378,-1000.0,0.00023821,2]
[385701103,1757979039387,-1000.0,0.00023821,2]
[385701105,1757979039396,-1000.0,0.00023821,2]
[385701107,1757979039405,-1000.0,0.00023821,2]
[385701109,1757979039415,-1000.0,0.00023821,2]
[385701112,1757979039424,-1000.0,0.00023821,2]
[385701114,1757979039433,-151.0,0.00023901,2]
[385701117,1757979039442,-500.0,0.00023901,2]
[385701119,1757979039451,-163.0,0.00023901,2]
[385701121,1757979039460,-233.24851325,0.00023903,3]
[385701123,1757979039469,-321.0,0.00023925,2]
[385701125,1757979039479,-260.0,0.00023927,2]
[385701127,1757979039488,-500.0,0.00023973,2]
[385701129,1757979039497,-502.08173503,0.00023973,2]
[385701131,1757979039507,-500.39823134,0.00023973,2]
[385701133,1757979039516,-20567.1914319,0.0002399,2]
[385701135,1757979039525,-1000.0,0.00024,2]
[385701137,1757979039535,-1000.0,0.00024,2]
[385701139,1757979039544,-1000.0,0.00024,2]
[385701141,1757979039553,-1000.0,0.00024,2]
[385701143,1757979039563,-1000.0,0.00024,2]
[385701145,1757979039572,-1000.0,0.00024,2]
[385701147,1757979039582,-1000.0,0.00024,2]
[385701150,1757979039591,-237.12,0.00024,2]
[385701152,1757979039601,-480.0,0.00024039,3]
[385701154,1757979039611,-1168.02,0.00024039,3]
[385701156,1757979039623,-480.0,0.00024039,3]
[385701158,1757979039633,-699.14,0.00024039,3]
[385701160,1757979039642,-933.96399753,0.00024093,2]
[385701162,1757979039651,-1000.0,0.000241,2]
[385701164,1757979039662,-1000.0,0.000241,2]
[385701166,1757979039672,-1000.0,0.00024121,2]
[385701168,1757979039682,-1000.0,0.00024121,2]
[385701170,1757979039691,-1000.0,0.00024121,2]
[385701172,1757979039700,-151.0,0.00024175,2]
[385701174,1757979039709,-500.0,0.00024175,2]
[385701175,1757979039719,-417.15472785,0.00024247,2]
[385701177,1757979039729,-160.0,0.00024247,2]
[385701179,1757979039738,-160.0,0.00024247,2]
[385701181,1757979039747,-233.24851325,0.00024247,2]
[385701184,1757979039757,-173.83262278,0.000243,2]
[385701185,1757979039766,-453.79766142,0.00024302,2]
[385701187,1757979039776,-480.0,0.00024313,3]
[385701200,1757979039879,-1168.02,0.00024313,3]
[385701202,1757979039888,-480.0,0.00024313,3]
[385701204,1757979039899,-699.14,0.00024313,3]
[385701206,1757979039908,-1500.0,0.00024368,2]
[385701208,1757979039918,-1490.18785629,0.00024368,2]
[385701210,1757979039928,-1500.0,0.00024368,2]
[385701212,1757979039937,-1102.98973203,0.00024368,2]
[385701214,1757979039946,-250.69111597,0.00024368,2]
[385701216,1757979039956,-1500.0,0.00024368,2]
[385701218,1757979039966,-1500.0,0.00024368,2]
[385701220,1757979039975,-1500.0,0.00024368,2]
[385701223,1757979039985,-1500.0,0.00024368,2]
[385701226,1757979039994,-1022.3,0.00024384,3]
[385701229,1757979040003,-480.2785542,0.00024384,2]
[385701232,1757979040012,-465.09751842,0.00024384,2]
[385701235,1757979040022,-616.96,0.00024384,3]
[385701237,1757979040031,-480.0,0.00024384,3]
[385701239,1757979040041,-507.17,0.00024384,3]
[385701241,1757979040050,-1192.65,0.00024384,3]
[385701243,1757979040060,-9134.0538488,0.00024385,2]
[385701245,1757979040069,-933.96399753,0.000244,2]
[385701247,1757979040078,-151.0,0.00024449,2]
[385701249,1757979040087,-500.0,0.00024449,2]
[385701251,1757979040096,-151.0,0.00024449,2]
[385701253,1757979040105,-151.0,0.00024449,2]
[385701255,1757979040114,-163.0,0.00024449,2]
[385701257,1757979040124,-500.0,0.00024473,2]
[385701259,1757979040133,-500.0,0.00024473,2]
[385701261,1757979040142,-500.0,0.00024473,2]
[385701263,1757979040151,-500.0,0.00024473,2]
[385701265,1757979040162,-500.32845412,0.00024473,2]
[385701268,1757979040173,-500.0,0.00024473,2]
[385701269,1757979040182,-500.0,0.00024473,2]
[385701272,1757979040191,-500.0,0.00024473,2]
[385701273,1757979040202,-500.0,0.00024473,2]
[385701276,1757979040212,-500.0,0.00024473,2]
[385701277,1757979040222,-500.0,0.00024473,2]
[385701280,1757979040231,-500.0,0.00024473,2]
[385701281,1757979040242,-500.0,0.00024473,2]
[385701283,1757979040252,-500.0,0.00024473,2]
[385701285,1757979040261,-500.0,0.00024473,2]
[385701288,1757979040270,-500.0,0.00024473,2]
[385701290,1757979040280,-549.04545887,0.00024473,2]
[385701292,1757979040289,-501.09002697,0.00024473,2]
[385701294,1757979040298,-500.0,0.00024473,2]
[385701296,1757979040307,-202.73440977,0.00024473,2]
[385701297,1757979040316,-500.0,0.00024473,2]
[385701300,1757979040326,-500.0,0.00024473,2]
[385701301,1757979040335,-500.0,0.00024473,2]
[385701304,1757979040345,-174.53655471,0.00024473,2]
[385701305,1757979040354,-500.0,0.00024473,2]
[385701307,1757979040363,-500.0,0.00024473,2]
[385701309,1757979040372,-500.0,0.00024473,2]
[385701311,1757979040381,-500.1783756,0.00024473,2]
[385701313,1757979040391,-500.0,0.00024473,2]
[385701315,1757979040400,-500.0,0.00024473,2]
[385701317,1757979040409,-360.0,0.00024474,2]
[385701319,1757979040418,-173.83262278,0.000245,2]
[385701321,1757979040427,-66157.84264133,0.000245,2]
[385701323,1757979040437,-2335.33,0.000245,7]
[385701325,1757979040446,-22662.95,0.000245,7]
[385701327,1757979040455,-1000.0,0.00024521,2]
[385701329,1757979040465,-480.0,0.00024587,3]
[385701331,1757979040474,-1168.02,0.00024587,3]
[385701333,1757979040483,-480.0,0.00024587,3]
[385701335,1757979040493,-699.14,0.00024587,3]
[385701337,1757979040502,-200.0,0.00024657,2]
[385701339,1757979040512,-380.0,0.00024658,2]
[385701342,1757979040530,-1022.3,0.00024658,3]
[385701344,1757979040557,-616.96,0.00024658,3]
[385701346,1757979040570,-480.0,0.00024658,3]
[385701348,1757979040580,-1192.65,0.00024658,3]
[385701350,1757979040590,-500.0,0.00024658,2]
[385701352,1757979040599,-587.0,0.00024662,2]
[385701354,1757979040609,-587.0,0.00024662,2]
[385701356,1757979040618,-1500.0,0.00024668,2]
[385701358,1757979040627,-1500.0,0.00024668,2]
[385701360,1757979040636,-1500.0,0.00024668,2]
[385701362,1757979040646,-151.0,0.000247,6]
[385701364,1757979040655,-151.0,0.00024723,2]
[385701366,1757979040664,-151.0,0.00024723,2]
[385701368,1757979040673,-151.0,0.00024723,2]
[385701370,1757979040682,-155.615,0.00024763,8]
[385701372,1757979040691,-3554.3364649,0.00024784,2]
[385701374,1757979040701,-173.83262278,0.000248,2]
[385701376,1757979040710,-387.95026368,0.00024823,2]
[385701378,1757979040719,-1183.46631395,0.00024837,2]
[385701380,1757979040729,-1080.0917576,0.00024837,2]
[385701382,1757979040738,-13078.2016386,0.00024837,2]
[385701384,1757979040747,-480.0,0.00024861,3]
[385701386,1757979040757,-1168.02,0.00024861,3]
[385701388,1757979040766,-480.0,0.00024861,3]
[385701390,1757979040775,-699.14,0.00024861,3]
[385701392,1757979040784,-500.0,0.00024873,2]
[385701394,1757979040793,-598.03792352,0.00024873,2]
[385701396,1757979040803,-500.0,0.00024873,2]
[385701398,1757979040812,-500.0,0.00024873,2]
[385701400,1757979040822,-500.52912716,0.00024873,2]
[385701402,1757979040831,-500.0,0.00024873,2]
[385701404,1757979040840,-160.76537437,0.00024873,2]
[385701406,1757979040849,-150.0,0.00024873,2]
[385701408,1757979040858,-2351.0,0.00024899,2]
[385701410,1757979040867,-1000.0,0.000249,2]
[385701412,1757979040876,-562.30123503,0.000249,2]
[385701414,1757979040886,-10757.29537903,0.000249,2]
[385701418,1757979040905,-111122.69437265,0.000249,2]
[385701431,1757979041023,-68706.25999906,0.000249,2]
[385701628,1757979043095,-468.942,0.000249,2]
[385701640,1757979043193,-2826.87817231,0.000249,2]
[385704749,1757979075797,389.4075545,0.0002761,30]
[385706886,1757979374324,188.5902635,0.00027753,30]
[385706887,1757979433982,188.5902635,0.00027753,30]
[385706888,1757979482042,5000.0,0.00019235,2]
[385706889,1757979493837,188.5902635,0.00027753,30]
[385706890,1757979496117,20000.0,0.00025,30]
[385706891,1757979555158,188.5902635,0.00027753,30]
[385706892,1757979613291,188.5902635,0.00027753,30]
[385706893,1757979673269,188.5902635,0.00027753,30]
[385706894,1757979734147,188.5902635,0.00027753,30]
[385706897,1757979793975,188.5902635,0.00027753,30]
[385706898,1757979854452,188.5902635,0.00027753,30]
[385706899,1757979913719,188.5902635,0.00027753,30]
[385706900,1757979973038,374.6455178,0.00027753,30]
[385706901,1757980034938,161.8674926,0.00027753,30]
[385706902,1757980051118,-223.122289,0.00021669,2]
[385706903,1757980051138,-200.0,0.00021669,12]
[385706904,1757980051158,-631.80514204,0.00021732,2]
[385706920,1757980232311,-1257.69339656,0.00021732,2]
[385706921,1757980232321,-139.70343883,0.00021785,2]
[385706922,1757980232334,-198.97640747,0.00021785,2]
[385706923,1757980232344,-269.65092083,0.00021913,2]
[385706924,1757980232356,-30.34907917,0.00021913,2]
[385706925,1757980232366,-300.0,0.00021913,2]
[385706926,1757980232377,-300.0,0.00021913,2]
[385706927,1757980232387,-300.0,0.00021913,2]
[385706928,1757980232397,-300.0,0.00021913,2]
[385706929,1757980232407,-1200.0,0.00021913,2]
[385706930,1757980232417,-507.17,0.00021917,2]
[385706931,1757980232428,-480.0,0.00021917,2]
[385706932,1757980232438,-163.818465,0.0002211,2]
[385706933,1757980232449,-300.0,0.00022353,20]
[385706934,1757980232460,-300.0,0.00022353,20]
[385706935,1757980232470,-480.0,0.00022669,3]
[385706936,1757980232480,-480.0,0.00022738,3]
[385706937,1757980232490,-480.0,0.00022738,3]
[385706938,1757980232500,-1022.02,0.00022738,3]
[385706939,1757980232510,-480.0,0.00022738,3]
[385706940,1757980232520,-611.75,0.00022738,3]
[385706941,1757980232529,-1237.53,0.00023012,3]
[385706942,1757980232678,-611.06738429,0.00023012,3]
[385706943,1757980232687,-480.0,0.00023012,3]
[385706944,1757980232697,-1022.02,0.00023012,3]
[385706945,1757980232706,-465.27223463,0.00023012,2]
[385706946,1757980232718,-15.00631957,0.00023012,2]
[385706947,1757980232727,-323.90922748,0.00023012,3]
[385706959,1757980238242,-2428.02598978,0.00023,10]
[385706960,1757980238255,-523.54095976,0.00023012,3]
[385706961,1757980238267,-480.0,0.00023012,3]
[385706962,1757980238276,-160.0,0.00023012,3]
[385706963,1757980238286,-611.75,0.00023012,3]
[385706964,1757980238296,-691.667209,0.00023065,2]
[385706965,1757980238305,-747.17119804,0.00023073,2]
[385706966,1757980238315,-616.96,0.00023115,3]
[385706967,1757980238324,-233.24851325,0.00023115,3]
[385706968,1757980238333,-480.0,0.00023115,3]
[385706969,1757980238343,-1192.65,0.00023115,3]
[385706970,1757980238352,-607.91,0.00023156,3]
[385706971,1757980238361,-151.0,0.00023165,2]
[385706972,1757980238372,-500.0,0.00023165,2]
[385706973,1757980238382,-163.0,0.00023165,2]
[385706974,1757980238393,-156.78283566,0.00023165,2]
[385706975,1757980238404,-257.35721376,0.00023165,2]
[385706976,1757980238414,-257.07234793,0.00023165,2]
[385706977,1757980238424,-500.0,0.00023165,2]
[385706978,1757980238433,-500.0,0.00023165,2]
[385706979,1757980238443,-500.0,0.00023165,2]
[385706980,1757980238453,-167.36227884,0.00023165,2]
[385706981,1757980238463,-232.28252747,0.00023165,2]
[385706982,1757980238474,-500.7322798,0.00023165,2]
[385706983,1757980238485,-413.47840259,0.00023165,2]
[385706984,1757980238495,-500.0,0.00023165,2]
[385706985,1757980238504,-401.20236761,0.00023165,2]
[385706986,1757980238513,-500.0,0.00023165,2]
[385706987,1757980238523,-500.0,0.00023165,2]
[385706988,1757980238534,-500.0,0.00023165,2]
[385706989,1757980238543,-500.0,0.00023165,2]
[385706990,1757980238552,-500.0,0.00023165,2]
[385706991,1757980238561,-500.0,0.00023165,2]
[385706992,1757980238570,-500.0,0.00023165,2]
[385706993,1757980238582,-500.0,0.00023165,2]
[385706994,1757980238593,-500.0,0.00023165,2]
[385706995,1757980238602,-500.0,0.00023165,2]
[385706996,1757980238611,-500.0,0.00023165,2]
[385706997,1757980238622,-500.0,0.00023165,2]
[385706998,1757980238631,-500.0,0.00023165,2]
[385706999,1757980238642,-500.0,0.00023165,2]
[385707000,1757980238651,-506.26050953,0.00023165,2]
[385707001,1757980238663,-500.0,0.00023165,2]
[385707002,1757980238672,-500.0,0.00023165,2]
[385707003,1757980238682,-500.0,0.00023165,2]
[385707004,1757980238691,-500.0,0.00023165,2]
[385707005,1757980238701,-500.0,0.00023165,2]
[385707006,1757980238710,-500.0,0.00023165,2]
[385707007,1757980238720,-381.48847253,0.00023165,2]
[385707008,1757980238730,-500.0,0.00023165,2]
[385707009,1757980238740,-500.0,0.00023165,2]
[385707010,1757980238749,-500.0,0.00023165,2]
[385707011,1757980238758,-500.0,0.00023165,2]
[385707012,1757980238767,-500.0,0.00023165,2]
[385707013,1757980238777,-449.17506094,0.00023165,2]
[385707014,1757980238787,-500.0,0.00023165,2]
[385707015,1757980238797,-500.0,0.00023165,2]
[385707016,1757980238807,-500.0,0.00023165,2]
[385707017,1757980238816,-500.0,0.00023165,2]
[385707018,1757980238826,-500.0,0.00023165,2]
[385707019,1757980238836,-500.0,0.00023165,2]
[385707020,1757980238845,-500.0,0.00023165,2]
[385707021,1757980238854,-500.0,0.00023165,2]
[385707022,1757980238864,-605.93146635,0.00023165,2]
[385707023,1757980238873,-500.0,0.00023165,2]
[385707024,1757980238882,-500.0,0.00023165,2]
[385707025,1757980238892,-500.0,0.00023165,2]
[385707026,1757980238901,-500.0,0.00023165,2]
[385707027,1757980238910,-500.0,0.00023165,2]
[385707028,1757980238919,-500.0,0.00023165,2]
[385707029,1757980238928,-500.0,0.00023165,2]
[385707030,1757980238937,-500.0,0.00023165,2]
[385707031,1757980238946,-500.0,0.00023165,2]
[385707032,1757980238955,-370000.0,0.00023166,2]
[385707033,1757980238964,-500.0,0.00023173,2]
[385707034,1757980238973,-500.0,0.00023173,2]
[385707035,1757980238982,-485.04805454,0.00023173,2]
[385707036,1757980238991,-313.3833243,0.00023173,2]
[385707037,1757980239000,-500.0,0.00023173,2]
[385707038,1757980239009,-500.76948217,0.00023173,2]
[385707039,1757980239018,-500.0,0.00023173,2]
[385707040,1757980239027,-500.0,0.00023173,2]
[385707041,1757980239035,-500.0,0.00023173,2]
[385707042,1757980239044,-500.0,0.00023173,2]
[385707043,1757980239053,-500.0,0.00023173,2]
[385707044,1757980239062,-500.0,0.00023173,2]
[385707045,1757980239071,-500.0,0.00023173,2]
[385707046,1757980239082,-500.0,0.00023173,2]
[385707047,1757980239091,-500.0,0.00023173,2]
[385707048,1757980239100,-500.0,0.00023173,2]
[385707049,1757980239109,-500.0,0.00023173,2]
[385707050,1757980239118,-500.0,0.00023173,2]
[385707051,1757980239127,-500.0,0.00023173,2]
[385707052,1757980239136,-22662.95,0.000232,7]
[385707053,1757980239145,-2335.33,0.000232,7]
[385707054,1757980239155,-631.45896929,0.00023236,2]
[385707055,1757980239164,-1237.53,0.00023286,3]
[385707056,1757980239174,-480.0,0.00023286,3]
[385707057,1757980239184,-1022.02,0.00023286,3]
[385707058,1757980239193,-480.0,0.00023286,3]
[385707059,1757980239203,-611.75,0.00023286,3]
[385707060,1757980239212,-1298.23,0.00023287,2]
[385707061,1757980239221,-300.89952072,0.00023297,2]
[385707062,1757980239231,-616.96,0.00023389,3]
[385707063,1757980239240,-480.0,0.00023389,3]
[385707064,1757980239250,-1192.65,0.00023389,3]
[385707065,1757980239259,-228.72,0.00023404,2]
[385707066,1757980239268,-747.17119802,0.00023405,2]
[385707067,1757980239278,-151.0,0.00023439,2]
[385707068,1757980239287,-500.0,0.00023439,2]
[385707069,1757980239296,-1000.0,0.00023508,2]
[385707070,1757980239305,-1000.0,0.00023508,2]
[385707071,1757980239314,-1000.0,0.00023508,2]
[385707072,1757980239323,-1000.0,0.00023508,2]
[385707073,1757980239334,-1000.0,0.00023508,2]
[385707074,1757980239343,-1000.0,0.00023508,2]
[385707075,1757980239352,-18761.83172441,0.00023508,2]
[385707076,1757980239361,-1000.0,0.00023508,2]
[385707077,1757980239370,-181.08010149,0.00023508,2]
[385707078,1757980239379,-151.0,0.00023508,2]
[385707079,1757980239389,-1000.0,0.00023508,2]
[385707080,1757980239398,-1000.0,0.00023508,2]
[385707081,1757980239407,-151.0,0.00023508,2]
[385707082,1757980239416,-500.0,0.00023508,2]
[385707083,1757980239425,-151.0,0.00023508,2]
[385707084,1757980239434,-151.0,0.00023508,2]
[385707085,1757980239443,-1000.0,0.00023508,2]
[385707086,1757980239452,-500.0,0.00023508,2]
[385707087,1757980239462,-151.0,0.00023508,2]
[385707088,1757980239471,-151.0,0.00023508,2]
[385707089,1757980239480,-151.0,0.00023508,2]
[385707090,1757980239490,-1000.0,0.00023508,2]
[385707091,1757980239499,-500.0,0.00023508,2]
[385707092,1757980239511,-151.0,0.00023508,2]
[385707093,1757980239519,-151.0,0.00023508,2]
[385707094,1757980239528,-151.0,0.00023508,2]
[385707095,1757980239538,-1000.0,0.00023508,2]
[385707096,1757980239546,-151.0,0.00023508,2]
[385707097,1757980239556,-151.0,0.00023508,2]
[385707098,1757980239566,-500.0,0.00023508,2]
[385707099,1757980239576,-1000.0,0.00023508,2]
[385707100,1757980239591,-151.0,0.00023508,2]
[385707101,1757980239600,-151.0,0.00023508,2]
[385707102,1757980239609,-151.0,0.00023508,2]
[385707103,1757980239619,-1145.9850186,0.00023508,2]
[385707104,1757980239642,-500.0,0.00023508,2]
[385707105,1757980239657,-151.0,0.00023508,2]
[385707106,1757980239667,-151.0,0.00023508,2]
[385707107,1757980239677,-500.0,0.00023508,2]
[385707108,1757980239688,-151.0,0.00023508,2]
[385707109,1757980239698,-174.65843349,0.00023508,2]
[385707110,1757980239707,-300.11116599,0.00023508,2]
[385707111,1757980239716,-500.0,0.00023508,2]
[385707112,1757980239727,-500.0,0.00023508,2]
[385707113,1757980239736,-500.0,0.00023508,2]
[385707114,1757980239745,-500.0,0.00023508,2]
[385707115,1757980239756,-500.0,0.00023508,2]
[385707116,1757980239764,-500.0,0.00023508,2]
[385707117,1757980239774,-500.0,0.00023508,2]
[385707118,1757980239786,-500.0,0.00023508,2]
[385707119,1757980239795,-500.0,0.00023508,2]
[385707120,1757980239804,-500.0,0.00023508,2]
[385707121,1757980239814,-500.0,0.00023508,2]
[385707122,1757980239824,-500.0,0.00023508,2]
[385707123,1757980239833,-500.0,0.00023508,2]